fUSD/lending_fUSD_20240607
["ID","MTS","AMOUNT","RATE_DAILY","PERIOD"]
[328723566,1717732233952,-1904.50813767,0.00029546,15]
[328723567,1717732233963,-2175.22061887,0.00029546,15]
[328723568,1717732233972,-516.349897,0.00029551,2]
[328723569,1717732233981,-959.674267,0.00029552,15]
[328723570,1717732233990,-153.27951669,0.00029556,2]
[328723571,1717732233999,-153.87,0.0002959,2]
[328723572,1717732234009,-241.3904826,0.00029592,2]
[328723573,1717732234018,-150.0,0.000296,5]
[328723574,1717732234027,-5542.2189,0.000296,2]
[328723575,1717732234037,-131724.5252624,0.000296,2]
[328723576,1717732234055,-338.36,0.000296,2]
[328723577,1717732234069,-343.125,0.000296,2]
[328723580,1717732238187,-150.01,0.00029469,2]
[328723581,1717732238197,-963.45114593,0.00029581,2]
[328723582,1717732238251,-126.00803398,0.00029581,2]
[328723583,1717732238261,-17297.37290856,0.000296,2]
[328723584,1717732238273,-251.60714365,0.000296,2]
[328723585,1717732238287,-994.33173855,0.000296,2]
[328723586,1717732238300,-657.76259654,0.000296,2]
[328723587,1717732238312,-327.61392011,0.000296,2]
[328723588,1717732238330,-742.11629914,0.000296,2]
[328723589,1717732238342,-277.0527081,0.000296,2]
[328723590,1717732238354,-1393.50302942,0.000296,2]
[328723591,1717732238366,-6146.64666196,0.000296,2]
[328723592,1717732238393,-6079.44560884,0.000296,2]
[328723593,1717732238405,-4562.56537436,0.000296,2]
[328723594,1717732238417,-78863.97174837,0.000296,2]
[328723595,1717732238427,-4079.72875654,0.00029605,15]
[328723596,1717732238438,-959.674267,0.0002961,15]
[328723597,1717732238448,-265.70058688,0.00029616,2]
[328723598,1717732238458,-516.349897,0.00029622,2]
[328723599,1717732238468,-270.19645264,0.00029633,2]
[328723600,1717732238477,-967.26377501,0.00029663,7]
[328723601,1717732238487,-959.674267,0.00029668,15]
[328723602,1717732238496,-270.19645264,0.00029669,2]
[328723603,1717732238505,-160.14959941,0.0002967,2]
[328723604,1717732238515,-166.66666666,0.00029672,2]
[328723605,1717732238526,-166.66666666,0.00029673,2]
[328723606,1717732238538,-152.13174733,0.00029682,2]
[328723607,1717732238548,-253.89386075,0.00029698,2]
[328723608,1717732238557,-7389.6252,0.000297,2]
[328723609,1717732238567,-241.3904826,0.000297,2]
[328723610,1717732238578,-959.674267,0.00029726,15]
[328723611,1717732238588,-516.349897,0.00029729,2]
[328723612,1717732238598,-270.19645264,0.00029748,2]
[328723613,1717732238608,-177.83025452,0.00029763,2]
[328723614,1717732238618,-169.38949708,0.00029763,2]
[328723615,1717732238627,-221.9887,0.00029763,2]
[328723617,1717732238637,-10000.0,0.00029763,2]
[328723619,1717732238647,-154.77962958,0.00029765,2]
[328723621,1717732238658,-200.0,0.00029775,2]
[328723623,1717732238672,-200.0,0.00029775,2]
[328723624,1717732238684,-906.08,0.00029778,2]
[328723625,1717732238695,-153.9126031,0.00029779,2]
[328723626,1717732238705,-959.674267,0.00029784,15]
[328723627,1717732238715,-155.20294582,0.00029786,2]
[328723628,1717732238725,-155.12700827,0.00029795,2]
[328723629,1717732238736,-156.07492052,0.000298,2]
[328723630,1717732238747,-9237.0315,0.000298,2]
[328723631,1717732238757,-12931.8441,0.000298,2]
[328723632,1717732238767,-14779.2504,0.000298,30]
[328723633,1717732238778,-160.0,0.000298,2]
[328723634,1717732238789,-20100.0,0.000298,2]
[328723635,1717732238800,-206.0,0.000298,2]
[328723636,1717732238810,-344.895309,0.000298,2]
[328723637,1717732238820,-265.70058688,0.00029812,2]
[328723638,1717732238830,-169.38949708,0.00029832,2]
[328723639,1717732238840,-516.349897,0.00029832,2]
[328723640,1717732238850,-500.0,0.00029838,2]
[328723641,1717732238860,-500.0,0.00029838,2]
[328723642,1717732238870,-500.0,0.00029838,2]
[328723643,1717732238880,-500.0,0.00029838,2]
[328723644,1717732238890,-959.674267,0.00029842,15]
[328723645,1717732238900,-1511.24231322,0.00029861,2]
[328723646,1717732238910,-2002.61863102,0.00029861,2]
[328723647,1717732238920,-3485.15724085,0.00029861,2]
[328723648,1717732238930,-290.21812333,0.00029861,2]
[328723649,1717732238940,-214.43831631,0.00029861,2]
[328723650,1717732238950,-157.58100289,0.00029861,2]
[328723651,1717732238960,-795.50254006,0.00029861,2]
[328723652,1717732238971,-184.31353049,0.00029861,2]
[328723653,1717732238981,-1371.0219023,0.00029861,2]
[328723654,1717732238991,-3899.44106607,0.00029861,2]
[328723655,1717732239001,-157.51406348,0.00029861,2]
[328723656,1717732239011,-4183.24294715,0.00029861,2]
[328723657,1717732239022,-1512.22939464,0.00029861,3]
[328723658,1717732239033,-490.28970637,0.00029861,2]
[328723659,1717732239043,-331.95370681,0.00029861,2]
[328723660,1717732239058,-13846.55047256,0.00029862,2]
[328723661,1717732239071,-4039.50613477,0.00029862,2]
[328723662,1717732239084,-3715.84965869,0.00029862,2]
[328723663,1717732239095,-150.0,0.00029862,10]
[328723664,1717732239105,-150.0,0.00029862,10]
[328723665,1717732239114,-150.0,0.00029862,10]
[328723666,1717732239125,-150.0,0.00029862,10]
[328723667,1717732239137,-150.0,0.00029862,10]
[328723668,1717732239147,-150.0,0.00029862,10]
[328723669,1717732239158,-150.0,0.00029862,10]
[328723670,1717732239169,-150.0,0.00029862,10]
[328723671,1717732239180,-150.0,0.00029862,10]
[328723672,1717732239191,-75186.36993387,0.00029862,2]
[328723673,1717732239209,-544.38170658,0.00029862,2]
[328723674,1717732239224,-12290.958005,0.00029862,2]
[328723675,1717732239236,-1798.71217538,0.00029862,2]
[328723676,1717732239250,-18225.15983614,0.00029862,2]
[328723677,1717732239262,-6117.02874937,0.00029862,2]
[328723678,1717732239275,-3733.84704,0.00029862,2]
[328723679,1717732239290,-8367.0,0.00029862,2]
[328723680,1717732239303,-21376.762189,0.00029862,2]
[328723681,1717732239318,-2838.32758398,0.00029862,2]
[328723682,1717732239331,-1761.30426397,0.00029862,2]
[328723683,1717732239351,-4112.310635,0.00029862,2]
[328723685,1717732241491,-1181.68,0.0002939,10]
[328723686,1717732241501,-1089.45917991,0.00029616,2]
[328723687,1717732241510,-5208.13725103,0.00029862,2]
[328723688,1717732241602,-1121.2213578,0.00029862,2]
[328723689,1717732241662,-274.48354881,0.00029599,2]
[328723690,1717732241672,-566.29303753,0.00029862,2]
[328723691,1717732241723,-6733.02504383,0.00029862,2]
[328723692,1717732241840,-257.59616578,0.00029862,2]
[328723693,1717732241907,-1770.000003,0.00029862,2]
[328723694,1717732241919,-286.313,0.00029862,2]
[328723695,1717732241932,-1280.51000987,0.00029862,2]
[328723696,1717732241943,-12501.87961368,0.00029862,2]
[328723728,1717732243679,-4079.72875654,0.00029664,15]
[328723729,1717732243690,-501.07350611,0.00029862,2]
[328723730,1717732243702,-344.10978337,0.00029862,2]
[328723731,1717732243714,-328.04999985,0.00029862,2]
[328723732,1717732243726,-792.16022245,0.00029862,2]
[328723733,1717732243738,-1076.65601909,0.00029862,2]
[328723734,1717732243795,-54342.98314517,0.00029862,2]
[328723735,1717732243808,-4149.18976936,0.00029862,2]
[328723736,1717732243819,-3016.43495575,0.00029862,2]
[328723737,1717732243839,-837.77,0.00029862,2]
[328723738,1717732243876,-155.50558442,0.00029858,2]
[328723739,1717732243885,-348.48852026,0.00029862,2]
[328723744,1717732246553,-531.0,0.00029652,2]
[328723783,1717733431512,-1099.23583175,0.00017159,2]
[328723784,1717733431526,-155.0,0.00017259,2]
[328723785,1717733431536,-1099.23583175,0.00018317,2]
[328723786,1717733431545,-1099.23583175,0.00019474,2]
[328723787,1717733431555,-150.0,0.00019574,2]
[328723788,1717733431565,-180.49244642,0.00019625,2]
[328723789,1717733431574,-364.12731579,0.0002153,2]
[328723790,1717733431584,-210.0,0.00021531,2]
[328723791,1717733431594,-1660.01,0.00021531,2]
[328723792,1717733431603,-150.99,0.00021531,2]
[328723793,1717733431612,-494.67,0.00021531,2]
[328723794,1717733431622,-150.99,0.00021531,2]
[328723795,1717733431631,-548.76898063,0.00023722,2]
[328723796,1717733431640,-165.61,0.00024384,2]
[328723797,1717733431649,-154.43,0.00024384,2]
[328723798,1717733431658,-1250.0,0.00025,2]
[328723799,1717733431667,-359.86,0.00025628,2]
[328723800,1717733431677,-500.0,0.00025939,2]
[328723801,1717733431687,-500.0,0.00025939,2]
[328723802,1717733431696,-500.0,0.00026487,2]
[328723803,1717733431706,-250.0,0.00026584,2]
[328723804,1717733431715,-1717.7,0.00026584,2]
[328723805,1717733431724,-2742.71995719,0.00026746,2]
[328723806,1717733431954,-8.28004281,0.00026746,2]
[328723807,1717733431964,-1358.11995719,0.00026867,2]
[328723808,1717733432083,-303.305,0.00026867,2]
[328723809,1717733432095,-2376.72504281,0.00026867,2]
[328723810,1717733432105,-954.78,0.00026923,2]
[328723811,1717733432115,-262.85,0.0002693,2]
[328723812,1717733432125,-533.27,0.0002693,2]
[328723813,1717733432136,-1300.0,0.00027,2]
[328723814,1717733432146,-500.0,0.00027,3]
[328723815,1717733432158,-500.0,0.00027,3]
[328723816,1717733432168,-650.0,0.00027,3]
[328723817,1717733432179,-500.0,0.00027,3]
[328723818,1717733432190,-500.0,0.00027,3]
[328723819,1717733432201,-170.32,0.00027024,2]
[328723820,1717733432210,-500.0,0.00027035,2]
[328723821,1717733432220,-500.0,0.00027035,2]
[328723822,1717733432231,-3639.38,0.00027055,2]
[328723823,1717733432242,-500.0,0.00027205,2]
[328723824,1717733432251,-200.0,0.00027215,2]
[328723825,1717733432260,-1415.34,0.0002724,2]
[328723826,1717733432270,-172.01,0.00027397,2]
[328723827,1717733432280,-250.0,0.0002743,2]
[328723828,1717733432291,-281.62,0.00027447,2]
[328723829,1717733432302,-202.47,0.00027494,2]
[328723830,1717733432311,-250.0,0.00027494,2]
[328723831,1717733432320,-790.45,0.00027518,2]
[328723832,1717733432328,-150.0,0.00027542,2]
[328723833,1717733432337,-200.0,0.00027559,2]
[328723834,1717733432347,-1836.43,0.0002757,2]
[328723835,1717733432357,-500.0,0.00027583,2]
[328723836,1717733432366,-23890.0,0.00027626,2]
[328723837,1717733432375,-343.78,0.00027644,2]
[328723838,1717733432384,-2387.67,0.00027644,2]
[328723839,1717733432393,-6104.44,0.00027648,2]
[328723840,1717733432402,-1000.0,0.00027707,2]
[328723841,1717733432411,-1000.0,0.00027772,2]
[328723842,1717733432420,-1000.0,0.00027848,2]
[328723843,1717733432429,-359.86,0.00027892,2]
[328723844,1717733432439,-152.76,0.00027904,2]
[328723845,1717733432448,-1000.0,0.00027924,2]
[328723846,1717733432457,-170.6,0.00027947,2]
[328723847,1717733432466,-468.72828225,0.00028,2]
[328723848,1717733432476,-4069.35361636,0.00028,3]
[328723849,1717733432488,-10930.64638364,0.00028,3]
[328723850,1717733432497,-1000.0,0.00028,2]
[328723851,1717733432506,-1000.0,0.00028076,2]
[328723852,1717733432515,-500.0,0.00028131,2]
[328723853,1717733432525,-500.0,0.00028131,2]
[328723854,1717733432534,-1000.0,0.00028152,2]
[328723855,1717733432543,-1000.0,0.00028229,2]
[328723856,1717733432557,-152.69,0.00028272,2]
[328723857,1717733432566,-1000.0,0.00028305,2]
[328723858,1717733432575,-1000.0,0.00028381,2]
[328723859,1717733432584,-1000.0,0.00028457,2]
[328723860,1717733432594,-1550.05,0.000285,3]
[328723861,1717733432603,-1000.0,0.00028533,2]
[328723862,1717733432612,-1000.0,0.00028609,2]
[328723863,1717733432622,-500.0,0.00028679,2]
[328723864,1717733432631,-1000.0,0.00028686,2]
[328723865,1717733432640,-1000.0,0.00028762,2]
[328723866,1717733432650,-1000.0,0.00028838,2]
[328723867,1717733432659,-1000.0,0.00028914,2]
[328723868,1717733432668,-1000.0,0.0002899,2]
[328723869,1717733432677,-2000.0,0.00029,2]
[328723870,1717733432687,-1350.0,0.00029,2]
[328723871,1717733432696,-5011.0,0.00029,7]
[328723872,1717733432705,-500.0,0.00029,3]
[328723873,1717733432715,-368.76082279,0.00029,2]
[328723874,1717733432724,-500.0,0.00029043,2]
[328723875,1717733432733,-1000.0,0.00029066,2]
[328723876,1717733432742,-1000.0,0.00029143,2]
[328723877,1717733432752,-1000.0,0.00029219,2]
[328723878,1717733432761,-500.0,0.00029227,2]
[328723879,1717733432770,-150.0,0.00029268,2]
[328723880,1717733432779,-322.0,0.000293,2]
[328723881,1717733432788,-757.0,0.000293,2]
[328723882,1717733432798,-1500.0,0.000293,2]
[328723883,1717733432807,-1717.7,0.00029324,2]
[328723884,1717733432816,-239.1305282,0.00029354,2]
[328723885,1717733432825,-217.25143434,0.00029379,2]
[328723886,1717733432834,-1178.15694375,0.00029395,2]
[328723887,1717733432843,-1000.0,0.000294,2]
[328723888,1717733432852,-224.0,0.000294,2]
[328723889,1717733432862,-354.0,0.000294,2]
[328723890,1717733432870,-155.20294582,0.0002942,2]
[328723891,1717733432880,-239.1305282,0.00029445,2]
[328723892,1717733432890,-154.8405178,0.00029491,2]
[328723893,1717733432900,-255.90171977,0.000295,2]
[328723894,1717733432909,-155.5558975,0.00029532,2]
[328723895,1717733432919,-452.75263098,0.00029544,2]
[328723896,1717733432928,-1631.89150267,0.00029552,15]
[328723897,1717733432937,-154.8405178,0.00029553,2]
[328723898,1717733432946,-301.61719397,0.00029563,4]
[328723899,1717733432955,-239.1305282,0.00029574,2]
[328723900,1717733432965,-1631.89150261,0.00029591,15]
[328723901,1717733432975,-239.1305282,0.00029596,2]
[328723902,1717733432984,-452.75263098,0.00029598,2]
[328723903,1717733432993,-490.43535849,0.000296,2]
[328723904,1717733433003,-157.0,0.000296,2]
[328723905,1717733433012,-608742.559909,0.000296,2]
[328723906,1717733433024,-858.16390953,0.000296,2]
[328723913,1717733437465,-1805.41293491,0.00017158,2]
[328723914,1717733437475,-1365.73,0.0002849,10]
[328723915,1717733437485,-274744.71873009,0.000296,2]
[328723916,1717733437526,-516.74135084,0.000296,2]
[328723917,1717733437643,-49135.69688223,0.000296,2]
[328723918,1717733437655,-32446.95943132,0.000296,2]
[328723920,1717733440726,-805.70562913,0.000296,2]
[328723921,1717733440740,-1903.727929,0.000296,2]
[328723922,1717733440752,-768.54837141,0.000296,2]
[328723923,1717733441415,-2094.83284638,0.000296,2]
[328723924,1717733441477,-42447.59313507,0.000296,2]
[328723925,1717733441487,-153.27951669,0.00029606,2]
[328723926,1717733441497,-217.25143434,0.00029622,2]
[328723927,1717733441506,-1631.89150261,0.00029629,15]
[328723928,1717733441517,-166.66666666,0.00029634,2]
[328723929,1717733441531,-153.78165961,0.00029644,2]
[328723930,1717733441540,-558.45917991,0.00029652,2]
[328723931,1717733441550,-1046.71514559,0.00029652,2]
[328723932,1717733441560,-3720.15241762,0.00029652,2]
[328723933,1717733441724,-4442.67593676,0.00029652,2]
[328723934,1717733441735,-319.84032518,0.00029652,2]
[328723936,1717733442563,-925.50594997,0.00029652,2]
[328723937,1717733442575,-427.149998,0.00029652,2]
[328723938,1717733442586,-1502.81579274,0.00029652,2]
[328723939,1717733442625,-23634.28409768,0.00029652,2]
[328723940,1717733442634,-169.07823965,0.00029652,2]
[328723941,1717733442643,-500.0,0.00029652,2]
[328723943,1717733442653,-446.79515573,0.00029652,2]
[328723945,1717733442662,-239.75282357,0.00029652,2]
[328723946,1717733442672,-500.0,0.00029652,2]
[328723947,1717733442681,-737.0,0.00029652,2]
[328723948,1717733442691,-500.0,0.00029659,2]
[328723949,1717733442701,-500.0,0.00029659,2]
[328723950,1717733442710,-500.0,0.00029659,2]
[328723951,1717733442720,-500.0,0.00029659,2]
[328723952,1717733442729,-500.0,0.00029659,2]
[328723953,1717733442738,-500.0,0.00029659,2]
[328723954,1717733442747,-399.31732159,0.00029659,2]
[328723955,1717733442756,-1631.89150261,0.00029668,15]
[328723956,1717733442766,-155.12700827,0.00029675,2]
[328723957,1717733442775,-155.0,0.00029682,5]
[328723958,1717733442785,-155.12700827,0.00029684,2]
[328723959,1717733442794,-248.44456034,0.00029687,2]
[328723960,1717733442803,-1089.45917991,0.00029687,2]
[328723961,1717733442814,-217.25143434,0.00029704,2]
[328723962,1717733442823,-1631.89150261,0.00029707,15]
[328723963,1717733442832,-452.75263098,0.00029708,2]
[328723964,1717733442841,-1089.45917991,0.00029723,2]
[328723965,1717733442851,-1631.89150261,0.00029745,15]
[328723966,1717733442860,-217.25143434,0.00029749,2]
[328723967,1717733442870,-1089.45917991,0.00029758,2]
[328723968,1717733442879,-2656.09910424,0.00029762,2]
[328723969,1717733442891,-4843.90089576,0.00029762,2]
[328723970,1717733442900,-391.16371663,0.00029762,2]
[328723971,1717733442909,-334.04974453,0.00029762,2]
[328723972,1717733442919,-165.17027442,0.00029763,2]
[328723973,1717733442928,-173.72263079,0.00029763,2]
[328723974,1717733442937,-188.81230478,0.00029763,2]
[328723975,1717733442946,-172.03387253,0.00029763,2]
[328723976,1717733442956,-1000.0,0.00029763,2]
[328723977,1717733442965,-160.51715234,0.00029773,2]
[328723978,1717733442975,-500.0,0.00029775,2]
[328723979,1717733442984,-391.16371661,0.00029782,2]
[328723980,1717733442993,-1631.89150261,0.00029784,15]
[328723981,1717733443002,-1089.45917991,0.00029794,2]
[328723982,1717733443012,-160.0,0.000298,2]
[328723983,1717733443021,-345.0,0.000298,2]
[328723984,1717733443031,-150.0,0.000298,2]
[328723985,1717733443040,-150.0,0.000298,6]
[328723986,1717733443049,-391.16371661,0.00029801,2]
[328723987,1717733443059,-452.75263098,0.00029807,2]
[328723988,1717733443068,-300.0,0.00029814,2]
[328723989,1717733443078,-154.8405178,0.00029818,2]
[328723990,1717733443087,-391.16371661,0.00029821,2]
[328723991,1717733443096,-755.87244108,0.00029823,15]
[328723992,1717733443426,-876.01906153,0.00029823,15]
[328723993,1717733443436,-160.51715234,0.00029827,2]
[328723994,1717733443445,-1089.45917991,0.00029829,2]
[328723995,1717733443455,-391.16371661,0.00029841,2]
[328723996,1717733443464,-248.44456034,0.00029843,2]
[328723997,1717733443473,-153.82,0.00029853,2]
[328723998,1717733443482,-3634.6009167,0.00029855,2]
[328723999,1717733443491,-155.5558975,0.00029858,2]
[328724000,1717733443500,-664.7044058,0.0002986,2]
[328724001,1717733443509,-839.27042304,0.0002986,2]
[328724002,1717733443519,-23182.2888855,0.0002986,2]
[328724003,1717733443529,-622.4005191,0.00029861,2]
[328724004,1717733443541,-364.11599494,0.00029861,10]
[328724005,1717733443550,-364.12731579,0.00029861,2]
[328724006,1717733443560,-155.0,0.00029861,2]
[328724007,1717733443569,-1631.89150261,0.00029861,15]
[328724008,1717733443579,-156.90340087,0.00029862,10]
[328724009,1717733443587,-150.0,0.00029862,10]
[328724010,1717733443596,-150.0,0.00029862,10]
[328724011,1717733443606,-150.0,0.00029862,10]
[328724012,1717733443615,-52122.13617492,0.00029862,2]
[328724013,1717733443628,-2228.67437954,0.00029862,2]
[328724016,1717733445593,-18813.77644921,0.00029652,2]
[328724017,1717733445603,-1138.11,0.0002985,10]
[328724018,1717733445612,-531.2760747,0.00029855,2]
[328724019,1717733445621,-391.16371661,0.00029861,2]
[328724020,1717733445630,-402602.22772112,0.00029862,2]
[328724021,1717733445639,-200.0,0.00029862,2]
[328724022,1717733445648,-200.0,0.00029862,2]
[328724023,1717733445658,-564.84578,0.00029862,2]
[328724024,1717733445667,-152.73532359,0.00029862,2]
[328724025,1717733445676,-156.48297965,0.00029862,10]
[328724026,1717733445685,-33502.71379418,0.00029863,13]
[328724027,1717733445695,-501.72174974,0.00029863,4]
[328724028,1717733445704,-500.0,0.00029863,4]
[328724029,1717733445714,-500.0,0.00029863,4]
[328724030,1717733445723,-500.0,0.00029863,4]
[328724031,1717733445732,-500.0,0.00029863,4]
[328724032,1717733445741,-500.0,0.00029863,4]
[328724033,1717733445750,-500.0,0.00029863,4]
[328724034,1717733445760,-511.54207133,0.00029863,4]
[328724035,1717733445769,-321.15646043,0.00029863,4]
[328724036,1717733445778,-500.0,0.00029863,4]
[328724037,1717733445789,-500.0,0.00029863,4]
[328724038,1717733445799,-500.0,0.00029863,4]
[328724039,1717733445810,-500.0,0.00029863,4]
[328724040,1717733445819,-500.0,0.00029863,4]
[328724041,1717733445828,-500.0,0.00029863,4]
[328724042,1717733445837,-616.57764275,0.00029863,4]
[328724043,1717733445846,-500.0,0.00029863,4]
[328724044,1717733445855,-500.0,0.00029863,4]
[328724045,1717733445865,-500.0,0.00029863,4]
[328724046,1717733445875,-500.0,0.00029863,4]
[328724047,1717733445886,-153.08099839,0.00029863,4]
[328724048,1717733445896,-500.0,0.00029863,4]
[328724049,1717733445906,-291.352452,0.00029863,7]
[328724050,1717733445916,-500.0,0.00029863,4]
[328724051,1717733445925,-500.0,0.00029863,4]
[328724052,1717733445935,-500.0,0.00029863,4]
[328724053,1717733445944,-245.36881379,0.00029863,4]
[328724059,1717733446130,-519.39,0.00029863,4]
[328724061,1717733446140,-519.39,0.00029863,4]
[328724063,1717733446149,-519.39,0.00029863,4]
[328724065,1717733446158,-519.39,0.00029863,4]
[328724067,1717733446168,-519.39,0.00029863,4]
[328724068,1717733446178,-519.39,0.00029863,4]
[328724070,1717733446187,-519.39,0.00029863,4]
[328724072,1717733446196,-519.39,0.00029863,4]
[328724074,1717733446206,-519.39,0.00029863,4]
[328724076,1717733446215,-519.39,0.00029863,4]
[328724078,1717733446225,-519.39,0.00029863,4]
[328724080,1717733446234,-519.39,0.00029863,4]
[328724081,1717733446244,-519.39,0.00029863,4]
[328724083,1717733446253,-500.0,0.00029863,4]
[328724085,1717733446263,-519.39,0.00029863,4]
[328724087,1717733446272,-500.0,0.00029863,4]
[328724088,1717733446281,-519.39,0.00029863,4]
[328724090,1717733446290,-519.39,0.00029863,4]
[328724091,1717733446299,-519.39,0.00029863,4]
[328724093,1717733446308,-500.0,0.00029863,4]
[328724095,1717733446319,-500.0,0.00029863,4]
[328724096,1717733446328,-519.39,0.00029863,4]
[328724098,1717733446337,-500.0,0.00029863,4]
[328724099,1717733446346,-500.0,0.00029863,4]
[328724101,1717733446360,-347.34046646,0.00029863,4]
[328724103,1717733446370,-519.39,0.00029863,4]
[328724105,1717733446379,-500.0,0.00029863,4]
[328724107,1717733446389,-500.0,0.00029863,4]
[328724109,1717733446399,-519.39,0.00029863,4]
[328724110,1717733446408,-500.0,0.00029863,4]
[328724112,1717733446418,-519.39,0.00029863,4]
[328724114,1717733446427,-519.39,0.00029863,4]
[328724116,1717733446437,-519.39,0.00029863,4]
[328724117,1717733446447,-500.0,0.00029863,4]
[328724119,1717733446457,-519.4690374,0.00029863,4]
[328724121,1717733446467,-500.0,0.00029863,4]
[328724123,1717733446476,-500.0,0.00029863,4]
[328724125,1717733446485,-500.0,0.00029863,4]
[328724126,1717733446494,-500.0,0.00029863,4]
[328724128,1717733446504,-476.08801186,0.00029863,4]
[328724130,1717733446513,-500.0,0.00029863,4]
[328724132,1717733446527,-500.0,0.00029863,4]
[328724134,1717733446537,-500.0,0.00029863,4]
[328724136,1717733446546,-500.0,0.00029863,4]
[328724137,1717733446556,-500.0,0.00029863,4]
[328724139,1717733446567,-500.0,0.00029863,4]
[328724141,1717733446576,-500.0,0.00029863,4]
[328724143,1717733446586,-500.0,0.00029863,4]
[328724145,1717733446595,-500.0,0.00029863,4]
[328724147,1717733446608,-500.0,0.00029863,4]
[328724149,1717733446618,-500.0,0.00029863,4]
[328724150,1717733446628,-262.79762964,0.00029863,4]
[328724152,1717733446638,-500.0,0.00029863,4]
[328724154,1717733446648,-500.0,0.00029863,4]
[328724156,1717733446657,-500.0,0.00029863,4]
[328724158,1717733446667,-500.0,0.00029863,4]
[328724160,1717733446677,-500.0,0.00029863,4]
[328724162,1717733446686,-497.48546328,0.00029863,4]
[328724164,1717733446698,-500.0,0.00029863,4]
[328724166,1717733446708,-500.0,0.00029863,4]
[328724167,1717733446717,-500.0,0.00029863,4]
[328724169,1717733446726,-500.0,0.00029863,4]
[328724171,1717733446736,-466.77185089,0.00029863,4]
[328724173,1717733446746,-500.0,0.00029863,4]
[328724175,1717733446756,-500.0,0.00029863,4]
[328724177,1717733446766,-500.0,0.00029863,4]
[328724179,1717733446775,-500.0,0.00029863,4]
[328724180,1717733446785,-500.0,0.00029863,4]
[328724182,1717733446794,-326.84339537,0.00029863,4]
[328724184,1717733446804,-500.0,0.00029863,4]
[328724186,1717733446814,-500.0,0.00029863,4]
[328724188,1717733446823,-500.0,0.00029863,4]
[328724190,1717733446833,-500.0,0.00029863,4]
[328724192,1717733446843,-500.0,0.00029863,4]
[328724193,1717733446852,-500.0,0.00029863,4]
[328724195,1717733446861,-500.0,0.00029863,4]
[328724197,1717733446871,-500.0,0.00029863,4]
[328724200,1717733446880,-500.0,0.00029863,4]
[328724202,1717733446889,-500.0,0.00029863,4]
[328724204,1717733446898,-500.0,0.00029863,4]
[328724206,1717733446908,-500.0,0.00029863,4]
[328724207,1717733446917,-500.0,0.00029863,4]
[328724208,1717733446926,-500.0,0.00029863,4]
[328724209,1717733446935,-500.0,0.00029863,4]
[328724210,1717733446944,-500.0,0.00029863,4]
[328724211,1717733446953,-500.0,0.00029863,4]
[328724212,1717733446962,-500.0,0.00029863,4]
[328724213,1717733446972,-500.0,0.00029863,4]
[328724214,1717733446981,-500.0,0.00029863,4]
[328724215,1717733446992,-527.08839237,0.00029863,4]
[328724216,1717733447001,-500.0,0.00029863,4]
[328724217,1717733447010,-500.0,0.00029863,4]
[328724218,1717733447020,-500.0,0.00029863,4]
[328724219,1717733447029,-500.0,0.00029863,4]
[328724220,1717733447039,-500.0,0.00029863,4]
[328724221,1717733447049,-500.0,0.00029863,4]
[328724222,1717733447058,-500.0,0.00029863,4]
[328724223,1717733447069,-500.0,0.00029863,4]
[328724224,1717733447079,-411.41848172,0.00029863,4]
[328724225,1717733447088,-500.0,0.00029863,4]
[328724227,1717733447098,-500.0,0.00029863,4]
[328724228,1717733447107,-500.0,0.00029863,4]
[328724230,1717733447117,-500.0,0.00029863,4]
[328724232,1717733447126,-500.0,0.00029863,4]